bitfinex-derivatives/quotes_ETHF0:USTF0_20250112
["timestamp","ask_amount","ask_price","bid_price","bid_amount"]
[1736640922469,0.21309,3286.1,3286.0,1.00216996]
[1736640925065,0.21308,3286.2,3286.0,1.00216996]
[1736640925268,3.2078,3286.4,3286.2,0.21308]
[1736640925570,0.21307,3286.5,3286.3,0.9317]
[1736640925866,0.21305,3286.7,3286.4,1.00216996]
[1736640926066,1.00216996,3286.8,3286.4,1.00216996]
[1736640926271,0.21306,3286.5,3286.4,1.00216996]
[1736640927089,0.4769,3286.7,3286.3,1.3965]
[1736640927371,0.21308,3286.3,3286.0,1.00216996]
[1736640927570,0.21308,3286.3,3286.0,1.68005996]
[1736640927766,0.4328,3286.4,3286.0,1.46696996]
[1736640928068,0.21309,3286.1,3286.0,1.46696996]
[1736640928371,0.21309,3286.1,3286.0,1.00216996]
[1736640928573,0.2131,3285.9,3285.8,1.3748]
[1736640929273,0.21311,3285.8,3285.7,1.00216996]
[1736640929475,0.4578,3286.0,3285.7,1.00216996]
[1736640929674,0.4578,3286.0,3285.9,1.00216996]
[1736640930672,0.67089,3286.0,3285.9,1.00216996]
[1736640931665,0.21311,3285.8,3285.7,1.00216996]
[1736640932270,0.21311,3285.9,3285.7,1.00216996]
[1736640933767,0.21311,3285.8,3285.7,1.00216996]
[1736640934169,0.2131,3285.9,3285.7,1.00216996]
[1736640936371,0.4578,3286.0,3285.7,1.00216996]
[1736640936568,1.00216996,3285.8,3285.6,0.476]
[1736640936776,1.00216996,3285.8,3285.3,0.21314]
[1736640936777,0.21312,3285.6,3285.3,1.00216996]
[1736640936964,0.21313,3285.5,3285.3,1.00216996]
[1736640937167,0.437,3285.5,3285.1,0.8971]
[1736640937368,0.21313,3285.4,3285.1,1.89926996]
[1736640937569,0.21313,3285.4,3285.3,1.00216996]
[1736640937776,0.437,3285.5,3285.3,1.00216996]
[1736640937976,0.65013,3285.5,3285.3,1.00216996]
[1736640938371,0.21312,3285.6,3285.4,0.4534]
[1736640938573,0.21312,3285.6,3285.5,1.00216996]
[1736640938876,0.21312,3285.6,3285.5,1.47116996]
[1736640939078,0.67402,3285.6,3285.5,1.47116996]
[1736640940078,0.67402,3285.6,3285.5,0.469]
[1736640940372,0.4609,3285.6,3285.3,1.00216996]
[1736640940579,0.21313,3285.4,3285.3,1.00216996]
[1736640940874,0.21315,3285.2,3285.1,4.67536996]
[1736640941075,0.21314,3285.3,3285.1,4.67536996]
[1736640941274,0.21314,3285.3,3285.1,3.6732]
[1736640941574,0.4437,3285.2,3285.1,3.6732]
[1736640941869,0.65685,3285.2,3285.1,3.6732]
[1736640942072,0.4437,3285.2,3285.1,0.4654]
[1736640943179,0.65685,3285.2,3285.1,0.4654]
[1736640943577,0.4437,3285.2,3285.1,0.4654]
[1736640943978,0.4437,3285.2,3285.1,0.8999]
[1736640945978,0.21315,3285.3,3285.1,0.8999]
[1736640948780,0.67604,3285.4,3285.1,0.8999]
[1736640949578,0.21314,3285.3,3285.1,0.8999]
[1736640949778,0.4629,3285.4,3285.1,0.8999]
[1736640949984,0.67603,3285.4,3285.1,1.11305]
[1736640950285,0.67603,3285.4,3285.1,0.8999]
[1736640951080,3.2078,3285.5,3285.1,0.8999]
[1736640951380,3.2078,3285.5,3285.4,0.21313]
[1736640952378,0.67571,3285.8,3285.4,0.21313]
[1736640952786,0.4626,3285.8,3285.1,0.8999]
[1736640953186,0.21315,3285.2,3285.1,0.8999]
[1736640955886,1.4165,3285.4,3285.1,0.8999]
[1736640956087,0.21315,3285.2,3285.1,0.8999]
[1736640956785,0.21314,3285.3,3285.1,0.8999]
[1736640959196,0.21315,3285.2,3285.1,0.8999]
[1736640961792,0.21314,3285.3,3285.1,0.8999]
[1736640961994,0.21315,3285.2,3285.1,0.8999]
[1736640963492,0.21314,3285.3,3285.1,0.8999]
[1736640964495,0.21315,3285.2,3285.1,0.8999]
[1736640965695,2.11620332,3285.3,3284.7,3.2078]
[1736640965996,2.11620332,3285.3,3284.5,0.8965]
[1736640965997,0.21318,3284.8,3284.5,0.8965]
[1736640966191,0.21317,3284.9,3284.6,0.4444]
[1736640966495,3.2078,3285.1,3284.6,0.4444]
[1736640966496,0.4755,3285.0,3284.6,0.4444]
[1736640966687,0.21318,3284.8,3284.6,0.4444]
[1736640967487,0.21318,3284.7,3284.6,0.4444]
[1736640972000,0.21317,3284.8,3284.6,0.4444]
[1736640973297,0.4755,3285.0,3284.6,0.4444]
[1736640973497,0.4755,3285.0,3284.6,0.65759]
[1736640973698,0.68866,3285.0,3284.6,0.65759]
[1736640974098,0.4755,3285.0,3284.6,0.4444]
[1736640974301,0.21318,3284.7,3284.6,0.4444]
[1736640974691,0.4755,3285.0,3284.6,0.4444]
[1736640974891,0.21318,3284.7,3284.6,0.4444]
[1736640976495,0.21319,3284.6,3284.5,0.8965]
[1736640977397,5.32400332,3284.7,3284.4,0.4605]
[1736640977597,0.21321,3284.3,3284.1,0.9094]
[1736640979004,0.4632,3284.5,3284.1,0.9094]
[1736640979198,0.21321,3284.3,3284.1,0.9094]
[1736640979612,0.21321,3284.2,3284.1,0.9094]
[1736640982515,3.2078,3284.3,3283.1,2.11620332]
[1736640982815,0.21324,3283.8,3283.7,0.4318]
[1736640984412,0.21324,3283.7,3283.6,0.9383]
[1736640984608,0.66834,3283.7,3283.6,0.9383]
[1736640984808,0.21324,3283.7,3283.6,1.3719]
[1736640985030,0.66833,3283.9,3283.6,1.3719]
[1736640985510,0.21324,3283.8,3283.6,1.3719]
[1736640986309,0.66833,3283.9,3283.6,1.3719]
[1736640987514,1.194,3284.0,3283.7,0.21324]
[1736640987716,5.29511,3284.3,3283.9,0.21323]
[1736640987911,4.10211,3284.3,3283.9,0.21323]
[1736640988908,4.10211,3284.3,3283.6,3.48810332]
[1736640988909,3.8889,3284.3,3283.6,3.48810332]
[1736640989115,3.8889,3284.3,3284.2,0.21321]
[1736640989517,3.2078,3284.3,3284.2,0.21321]
[1736640989813,0.21319,3284.6,3284.2,0.21321]
[1736640990012,0.21319,3284.6,3284.3,0.9254]
[1736640990211,0.21319,3284.6,3284.3,1.3707]
[1736640991417,0.21319,3284.5,3284.3,1.3707]
[1736640994019,3.6437,3284.7,3284.3,1.3707]
[1736640994020,3.2078,3284.7,3284.3,1.3707]
[1736640994414,3.2078,3284.7,3284.4,0.2132]
[1736640994719,1.193,3284.9,3284.3,4.5785]
[1736640994916,3.6766,3285.1,3284.8,0.21317]
[1736640995113,3.2078,3285.1,3284.9,1.3776]
[1736640995616,3.42096,3285.1,3284.9,1.3776]
[1736640996014,3.2078,3285.1,3284.9,1.3776]
[1736640996217,2.11620332,3285.3,3284.9,1.3776]
[1736640996714,0.21315,3285.2,3284.9,1.3776]
[1736640999620,0.21315,3285.1,3284.9,1.3776]
[1736641000921,0.21315,3285.2,3284.9,1.3776]
[1736641002023,0.21315,3285.1,3284.9,1.3776]
[1736641003422,2.11620332,3285.3,3284.9,1.3776]
[1736641003622,0.21315,3285.2,3284.9,1.3776]
[1736641007128,0.21315,3285.1,3284.9,1.3776]
[1736641007831,6.51700332,3285.5,3284.9,1.3776]
[1736641008031,0.21315,3285.2,3284.9,1.3776]
[1736641008226,6.51700332,3285.5,3284.9,1.3776]
[1736641008530,0.21316,3285.1,3284.9,1.3776]
[1736641009131,6.51700332,3285.5,3284.9,1.3776]
[1736641009329,3.2078,3285.5,3285.2,0.21314]
[1736641009530,9.5061939,3285.7,3285.1,5.32400332]
[1736641009831,9.5061939,3285.7,3285.6,0.21312]
[1736641010338,9.5061939,3285.7,3285.6,1.55152]
[1736641010636,0.21309,3286.1,3285.7,0.21311]
[1736641010933,10.23151538,3286.6,3285.9,3.2078]
[1736641010934,2.11620332,3286.5,3285.9,3.2078]
[1736641011235,2.32926332,3286.5,3286.0,0.21309]
[1736641011434,2.32926332,3286.5,3286.1,0.21309]
[1736641011734,2.32926332,3286.5,3286.2,0.8891]
[1736641011935,0.21307,3286.4,3286.2,0.8891]
[1736641012133,0.66951641,3286.7,3286.3,0.4685]
[1736641012134,0.88256641,3286.7,3286.3,0.4685]
[1736641012329,0.66951641,3286.7,3286.3,0.4685]
[1736641012539,0.66951641,3286.7,3286.3,0.68157]
[1736641012733,0.88256641,3286.7,3286.3,0.68157]
[1736641012936,0.88256641,3286.7,3286.3,0.4685]
[1736641013233,0.66951641,3286.7,3286.3,0.4685]
[1736641013621,0.88256641,3286.7,3286.3,0.4685]
[1736641014334,0.66951641,3286.7,3286.3,0.4685]
[1736641014637,0.66951641,3286.7,3286.3,0.68157]
[1736641015130,0.66951641,3286.7,3286.3,0.4685]
[1736641015131,0.88256641,3286.7,3286.3,0.4685]
[1736641015530,0.66951641,3286.7,3286.3,0.68157]
[1736641016630,0.66951641,3286.7,3286.3,0.4685]
[1736641016934,0.88256641,3286.7,3286.3,0.4685]
[1736641018441,0.66951641,3286.7,3286.3,0.4685]
[1736641018641,0.88256641,3286.7,3286.3,0.4685]
[1736641019137,0.66951641,3286.7,3286.3,0.68157]
[1736641019640,0.88256641,3286.7,3286.3,0.4685]
[1736641020638,0.21306,3286.6,3286.3,0.4685]
[1736641021033,0.88256641,3286.7,3286.3,0.4685]
[1736641022133,0.88256641,3286.7,3286.3,0.68157]
[1736641023335,0.66951641,3286.7,3286.3,0.68157]
[1736641023839,0.66951641,3286.7,3286.3,2.58470332]
[1736641024037,0.67513,3287.0,3286.6,2.32925332]
[1736641024237,0.67513,3287.0,3286.6,2.11620332]
[1736641024542,0.21304,3286.9,3286.6,2.11620332]
[1736641025329,0.4621,3287.0,3286.4,0.21307]
[1736641025532,0.21304,3286.9,3286.5,0.21306]
[1736641026137,0.21304,3286.9,3286.4,0.21306]
[1736641026335,0.21305,3286.7,3286.3,2.58470332]
[1736641026540,3.2078,3286.9,3286.3,2.58470332]
[1736641026734,0.21305,3286.7,3286.3,2.58470332]
[1736641026939,0.21306,3286.6,3286.3,2.58470332]
[1736641027138,0.4406,3286.8,3286.3,0.4685]
[1736641027340,0.21307,3286.4,3286.3,0.4685]
[1736641028637,0.66277,3286.5,3286.3,0.4685]
[1736641029537,0.4497,3286.5,3286.3,0.4685]
[1736641029732,0.21307,3286.4,3286.3,0.4685]
[1736641030338,0.66276,3286.5,3286.3,0.4685]
[1736641030841,0.21307,3286.4,3286.3,0.4685]
[1736641031739,3.6575,3286.5,3286.0,3.2078]
[1736641032039,0.21311,3285.8,3285.7,1.371]
[1736641033143,0.2131,3285.9,3285.7,1.371]
[1736641033740,0.9068,3286.0,3285.7,1.371]
[1736641033741,0.21311,3285.8,3285.7,1.371]
[1736641034840,0.21313,3285.5,3285.2,5.53714332]
[1736641035040,0.21312,3285.6,3285.3,1.3998]
[1736641035234,0.21312,3285.7,3285.4,0.21313]
[1736641035639,0.21312,3285.6,3285.3,1.61294]
[1736641036041,0.21312,3285.7,3285.4,0.21313]
[1736641036245,0.21312,3285.7,3285.3,1.3998]
[1736641036440,0.21312,3285.7,3285.3,1.61294]
[1736641036945,0.9068,3286.0,3285.3,1.61294]
[1736641036946,0.21312,3285.6,3285.3,1.61294]
[1736641037545,0.21312,3285.7,3285.4,0.21313]
[1736641039249,0.21312,3285.7,3285.3,1.61294]
[1736641040446,0.21312,3285.6,3285.3,1.61294]
[1736641040651,0.21313,3285.5,3285.3,1.3998]
[1736641041148,0.21313,3285.6,3285.3,1.61294]
[1736641041850,0.21313,3285.5,3285.3,1.3998]
[1736641042051,0.9068,3286.0,3285.3,1.3998]
[1736641042253,0.9068,3286.0,3285.4,0.21313]
[1736641042254,0.21312,3285.7,3285.4,0.21313]
[1736641042444,0.21311,3285.8,3285.5,0.21313]
[1736641042644,0.21311,3285.8,3285.3,1.3998]
[1736641042848,0.21311,3285.8,3285.4,0.21313]
[1736641043047,0.9068,3286.0,3285.5,2.11620332]
[1736641043356,0.474,3286.0,3285.8,0.2131]
[1736641043547,0.474,3286.0,3285.9,0.9087]
[1736641043747,0.474,3286.0,3285.9,1.3473]
[1736641043949,3.2078,3286.1,3285.9,1.5604]
[1736641044455,3.2078,3286.1,3285.9,1.3473]
[1736641045155,0.691427,3288.0,3285.9,1.3473]
[1736641045156,12.7139939,3287.0,3285.9,1.3473]
[1736641045351,0.66104,3286.9,3286.5,0.21306]
[1736641045657,0.66104,3286.9,3286.6,0.8894]
[1736641045854,0.21304,3286.8,3286.6,0.8894]
[1736641046054,0.448,3286.9,3286.6,0.8894]
[1736641046055,0.21305,3286.7,3286.6,0.8894]
[1736641046651,0.21307,3286.4,3285.9,2.77530332]
[1736641046954,3.2078,3286.6,3286.0,1.14189]
[1736641047258,0.21307,3286.4,3286.0,1.14189]
[1736641048359,0.4615,3286.3,3286.0,1.14189]
[1736641048658,0.67458,3286.3,3286.0,0.9288]
[1736641049050,0.21309,3286.1,3286.0,0.9288]
[1736641049342,0.21309,3286.2,3286.0,0.9288]
[1736641050346,0.4615,3286.3,3286.0,0.9288]
[1736641050757,0.21308,3286.2,3286.0,0.9288]
[1736641051551,0.67458,3286.3,3286.0,0.9288]
[1736641051756,0.67257,3286.5,3286.2,0.21308]
[1736641051949,0.21307,3286.4,3286.2,0.21308]
[1736641053659,0.21307,3286.5,3286.2,0.21308]
[1736641054260,0.21306,3286.5,3286.2,0.21308]
[1736641057152,0.4771,3286.7,3286.0,0.9288]
[1736641057361,0.69015,3286.7,3286.4,0.21307]
[1736641057548,0.69015,3286.7,3286.5,0.4704]
[1736641057860,0.69015,3286.7,3286.5,0.9435]
[1736641058061,0.4771,3286.7,3286.5,0.9435]
[1736641058261,0.21306,3286.6,3286.5,0.9435]
[1736641060757,0.4771,3286.7,3286.0,0.66389]
[1736641060966,0.21307,3286.5,3286.1,0.68679]
[1736641061359,0.21306,3286.6,3286.2,0.21308]
[1736641062662,0.4771,3286.7,3286.1,0.4737]
[1736641062964,0.21306,3286.6,3286.2,0.21308]
[1736641064263,0.21307,3286.5,3286.1,0.68679]
[1736641064468,0.21307,3286.5,3286.2,0.21308]
[1736641065462,0.21306,3286.6,3286.2,0.21308]
[1736641067063,0.21306,3286.6,3286.1,0.4737]
[1736641067270,0.21306,3286.6,3286.3,0.21307]
[1736641067461,3.6849,3286.7,3286.4,0.454]
[1736641067666,3.6849,3286.7,3286.5,1.14946]
[1736641068267,3.6849,3286.7,3286.5,0.9364]
[1736641068971,3.89795,3286.7,3286.5,0.9364]
[1736641070976,0.21306,3286.6,3286.5,0.9364]
[1736641072469,3.6849,3286.7,3285.8,3.74056]
[1736641072677,0.21306,3286.5,3286.1,0.21308]
[1736641073382,0.21306,3286.5,3286.1,0.21309]
[1736641073581,0.21306,3286.5,3286.0,1.3632]
[1736641073782,0.21306,3286.5,3286.1,0.21309]
[1736641074083,0.21306,3286.6,3286.2,0.21308]
[1736641075282,0.4771,3286.7,3286.3,0.21307]
[1736641075482,0.21306,3286.6,3286.4,0.441]
[1736641076187,0.4771,3286.7,3286.4,0.441]
[1736641076483,0.21308,3286.2,3286.0,0.8881]
[1736641076684,0.4566,3286.1,3286.0,0.8881]
[1736641077383,0.66969,3286.1,3286.0,0.8881]
[1736641077785,3.6644,3286.1,3285.5,0.9356]
[1736641077986,0.21312,3285.7,3285.6,0.4325]
[1736641078283,4.5845,3286.1,3285.6,0.4325]
[1736641078483,0.21311,3285.8,3285.6,0.4325]
[1736641078786,0.21311,3285.7,3285.6,0.4325]
[1736641079285,4.5845,3286.1,3285.6,0.4325]
[1736641079286,0.21311,3285.8,3285.6,0.4325]
[1736641079778,3.6644,3286.1,3285.6,0.4325]
[1736641079986,3.42089,3286.1,3285.8,0.2131]
[1736641080375,3.42089,3286.1,3285.7,0.21311]
[1736641080789,3.2078,3286.1,3285.8,0.21311]
[1736641080980,3.2078,3286.1,3285.6,0.4325]
[1736641081177,0.21309,3286.1,3285.7,0.21311]
[1736641081988,1.192,3286.3,3285.6,0.4325]
[1736641082280,0.4775,3286.0,3285.6,0.4325]
[1736641082485,0.21311,3285.8,3285.6,0.4325]
[1736641084287,0.21311,3285.9,3285.6,0.4325]
[1736641084884,0.2131,3285.9,3285.6,0.4325]
[1736641085485,0.21311,3285.8,3285.6,0.4325]
[1736641085681,0.21311,3285.7,3285.6,0.4325]
[1736641089393,3.2078,3285.9,3285.6,0.4325]
[1736641089584,0.21311,3285.8,3285.6,0.4325]
[1736641089781,0.21311,3285.7,3285.6,0.4325]
[1736641090790,0.18431,3285.7,3285.6,0.4325]
[1736641091188,0.15551,3285.7,3285.6,0.4325]
[1736641091992,3.2078,3285.9,3285.5,0.9356]
[1736641091993,0.21312,3285.6,3285.5,0.9356]
[1736641092193,0.68882,3285.6,3285.5,0.9356]
[1736641092586,0.21313,3285.5,3285.4,0.4552]
[1736641096088,0.4757,3285.6,3285.4,0.4552]
[1736641096494,3.2078,3285.9,3285.4,0.4552]
[1736641096699,3.2078,3285.9,3285.6,0.21312]
[1736641097002,3.2078,3285.9,3285.7,0.4616]
[1736641097201,3.2078,3285.9,3285.7,0.9291]
[1736641097497,3.2078,3285.9,3285.8,0.4724]
[1736641098394,3.4209,3285.9,3285.8,0.4724]
[1736641099093,0.2131,3285.9,3285.8,0.4724]
[1736641099301,0.21311,3285.8,3285.7,0.9291]
[1736641105203,0.21313,3285.5,3285.2,0.4403]
[1736641105404,0.21313,3285.5,3285.3,0.8746]
[1736641105606,0.18433,3285.5,3285.3,0.8746]
[1736641105802,0.21313,3285.4,3285.3,0.8746]
[1736641105998,3.2078,3285.9,3284.1,4.78328923]
[1736641105999,3.30920332,3285.6,3284.6,3.2078]
[1736641106204,0.21316,3285.0,3284.9,0.9111]
[1736641106705,0.21315,3285.2,3284.9,0.9111]
[1736641107708,3.6834,3285.5,3284.9,0.9111]
[1736641108205,0.21315,3285.2,3284.9,0.9111]
[1736641108402,3.6834,3285.5,3284.9,0.9111]
[1736641108898,0.21315,3285.2,3284.9,0.9111]
[1736641111896,0.21315,3285.1,3284.9,0.9111]
[1736641113510,0.21315,3285.2,3284.9,0.9111]
[1736641113710,3.6834,3285.5,3284.9,0.9111]
[1736641114209,3.89653,3285.5,3285.1,0.21315]
[1736641114511,3.89653,3285.5,3285.2,0.434]
[1736641114708,3.42093,3285.5,3285.2,0.434]
[1736641114909,3.42093,3285.5,3285.3,0.4771]
[1736641115107,3.42093,3285.5,3285.4,0.4331]
[1736641116903,3.2078,3285.5,3285.4,0.4331]
[1736641117103,20.41374204,3286.2,3285.9,0.2131]
[1736641117315,20.20066204,3286.2,3286.1,0.21309]
[1736641118208,3.42086,3286.5,3286.2,0.21308]
[1736641118405,3.2078,3286.5,3286.3,0.21307]
[1736641118606,3.2078,3286.5,3286.0,1.3174]
[1736641118806,3.2078,3286.5,3286.2,0.21308]
[1736641119007,3.2078,3286.5,3286.3,0.21307]
[1736641119709,3.2078,3286.5,3286.4,0.21307]
[1736641120010,3.2078,3286.5,3286.0,3.43360332]
[1736641120216,3.42086,3286.5,3286.1,0.21308]
[1736641120716,0.21307,3286.4,3286.0,1.53049]
[1736641123212,0.21307,3286.5,3286.0,1.3174]
[1736641123418,0.4325,3286.7,3286.1,0.21309]
[1736641123721,0.21307,3286.4,3286.1,0.21309]
[1736641124813,0.21307,3286.5,3286.1,0.21309]
[1736641126225,0.4325,3286.7,3286.0,1.3174]
[1736641126517,0.21308,3286.2,3286.0,1.3174]
[1736641126720,0.21308,3286.3,3286.0,1.3174]
[1736641127028,0.21308,3286.2,3286.0,1.3174]
[1736641127416,0.21309,3286.1,3286.0,1.3174]
[1736641127616,0.67819,3286.1,3286.0,1.3174]
[1736641130709,0.21309,3286.0,3285.8,3.2078]
[1736641130910,0.21309,3286.0,3285.8,4.591]
[1736641131526,0.21309,3286.0,3285.8,4.80411]
[1736641132218,0.21309,3286.0,3285.8,4.591]
[1736641133124,0.67819,3286.1,3285.8,4.80411]
[1736641134529,0.4651,3286.1,3285.8,4.80411]
[1736641134730,0.2131,3286.0,3285.8,4.591]
[1736641135628,0.4651,3286.1,3285.8,4.591]
[1736641135815,0.2131,3285.9,3285.8,4.591]
[1736641137635,0.6895,3286.0,3285.8,4.591]
[1736641137927,0.4764,3286.0,3285.8,4.591]
[1736641138724,0.6895,3286.0,3285.8,4.591]
[1736641140334,0.4764,3286.0,3285.8,4.591]
[1736641140539,0.2131,3285.9,3285.8,4.591]
[1736641140727,0.4764,3286.0,3285.8,4.591]
[1736641141530,0.2131,3285.9,3285.8,4.591]
[1736641141734,3.6842,3286.0,3285.4,0.21313]
[1736641141923,0.21314,3285.3,3285.2,0.8755]
[1736641142237,0.21316,3285.0,3284.6,0.21318]
[1736641142427,0.21316,3285.0,3284.6,1.53618]
[1736641142726,3.2078,3285.1,3284.6,1.323]
[1736641142930,0.21318,3284.7,3284.6,1.323]
[1736641143326,3.2078,3285.1,3284.3,4.78328923]
[1736641143327,2.11620332,3285.0,3284.3,4.78328923]
[1736641143527,0.21319,3284.5,3284.3,4.78328923]
[1736641143929,0.2132,3284.4,3284.2,3.2078]
[1736641144437,0.4795,3284.6,3284.2,3.2078]
[1736641144647,0.2132,3284.5,3284.2,3.2078]
[1736641147329,1.195,3285.0,3284.2,3.2078]
[1736641147735,0.21318,3284.7,3284.2,3.42101]
[1736641148037,1.195,3285.0,3284.2,3.2078]
[1736641148235,3.6582,3285.1,3284.3,0.2132]
[1736641148435,0.21318,3284.8,3284.3,0.2132]
[1736641149236,3.6582,3285.1,3284.2,3.2078]
[1736641149237,2.11620332,3285.0,3284.2,3.2078]
[1736641149440,0.4501,3284.9,3284.2,3.2078]
[1736641149938,0.2132,3284.4,3284.2,3.2078]
[1736641150137,0.2132,3284.5,3284.1,0.4331]
[1736641150327,0.2132,3284.4,3284.1,0.4331]
[1736641150532,0.4761,3284.6,3284.1,0.4331]
[1736641150735,0.21319,3284.5,3284.1,0.4331]
[1736641151037,0.68929,3284.6,3284.1,0.64632]
[1736641151541,0.2132,3284.5,3284.1,0.4331]
[1736641152038,0.4761,3284.6,3284.1,0.64632]
[1736641152230,0.21319,3284.5,3284.1,0.64632]
[1736641152642,0.4761,3284.6,3284.1,0.64632]
[1736641152840,3.2078,3284.7,3284.2,3.2078]
[1736641153037,3.2078,3284.7,3284.4,0.21319]
[1736641153243,3.2078,3284.7,3284.5,0.4381]
[1736641153445,3.2078,3284.7,3284.5,0.8962]
[1736641155047,0.2132,3284.3,3284.2,3.2078]
[1736641155546,0.2132,3284.4,3284.2,3.2078]
[1736641156239,0.21319,3284.5,3284.2,3.2078]
[1736641156448,0.9407,3284.6,3284.2,3.2078]
[1736641156838,0.2132,3284.4,3284.2,3.2078]
[1736641158439,0.4722,3284.6,3284.2,3.2078]
[1736641158644,0.21319,3284.5,3284.2,3.2078]
[1736641159453,0.4722,3284.6,3284.2,3.2078]
[1736641159663,0.2132,3284.3,3284.2,3.2078]
[1736641161164,0.2132,3284.3,3284.1,0.4331]
[1736641161165,0.21321,3284.2,3284.1,0.4331]
[1736641162163,3.2078,3284.3,3283.7,0.9113]
[1736641162359,0.21323,3284.0,3283.8,0.4636]
[1736641163365,3.2078,3284.3,3283.8,0.4636]
[1736641163662,0.21323,3284.0,3283.8,0.4636]
[1736641164367,0.21323,3283.9,3283.8,0.4636]
[1736641165858,0.21324,3283.7,3283.6,3.2078]
[1736641170566,6.95850332,3283.8,3283.0,3.6731]
[1736641170765,0.53312,3283.7,3283.0,3.6731]
[1736641170975,0.21327,3283.3,3283.0,3.6731]
[1736641171374,0.53312,3283.7,3283.0,3.6731]
[1736641171564,0.21327,3283.3,3283.0,3.6731]
[1736641172071,0.53312,3283.7,3283.0,3.6731]
[1736641172376,0.21327,3283.3,3283.0,3.6731]
[1736641173274,0.21328,3283.2,3283.0,0.4653]
[1736641173469,0.53312,3283.7,3283.0,0.4653]
[1736641173664,0.21327,3283.3,3283.0,0.4653]
[1736641175372,6.95850332,3283.8,3283.0,0.4653]
[1736641175570,0.21327,3283.4,3283.0,0.67859]
[1736641176175,0.21327,3283.3,3283.0,0.4653]
[1736641178276,6.95850332,3283.8,3283.0,0.4653]
[1736641178479,0.21327,3283.3,3283.0,0.4653]
[1736641179170,2.11620332,3283.5,3283.0,0.4653]
[1736641179371,0.21328,3283.2,3283.0,0.4653]
[1736641179870,0.21328,3283.1,3283.0,0.4653]
[1736641180270,2.11620332,3283.5,3283.0,0.4653]
[1736641180579,0.21328,3283.2,3283.0,0.4653]
[1736641180879,0.21328,3283.1,3283.0,0.4653]
[1736641187778,0.4594,3283.3,3283.0,0.4653]
[1736641187779,0.21328,3283.2,3283.0,0.4653]
[1736641188178,0.21328,3283.2,3283.0,0.67859]
[1736641188373,0.21328,3283.2,3283.0,0.4653]
[1736641188986,0.21328,3283.2,3283.0,0.67859]
[1736641189180,3.31520332,3283.8,3283.0,0.4653]
[1736641189181,3.2078,3283.8,3283.0,0.4653]
[1736641189483,0.21325,3283.7,3283.4,0.21326]
[1736641189687,0.21325,3283.7,3283.5,1.4052]
[1736641189874,3.2078,3283.8,3283.5,1.4052]
[1736641189875,0.21325,3283.6,3283.5,1.4052]
[1736641193574,3.42104,3283.8,3283.5,1.4052]
[1736641193771,0.21325,3283.7,3283.5,1.4052]
[1736641194981,0.21325,3283.6,3283.5,1.4052]
[1736641195783,0.21326,3283.5,3283.1,0.21328]
[1736641195985,0.21325,3283.6,3283.2,1.58787]
[1736641196180,3.2078,3283.8,3283.2,1.3746]
[1736641196379,3.2078,3283.8,3283.5,0.21326]
[1736641196679,3.2078,3283.8,3283.2,3.49080332]
[1736641196884,3.2078,3284.2,3283.5,5.32400332]
[1736641197081,3.2078,3284.2,3284.1,0.21322]
[1736641197788,3.2078,3284.2,3283.9,1.3311]
[1736641198187,3.2078,3284.2,3284.1,0.21322]
[1736641198489,3.2078,3284.7,3284.4,0.2132]
[1736641198689,3.2078,3284.7,3284.5,1.3311]
[1736641199883,3.42098,3284.7,3284.5,1.3311]
[1736641200985,3.2078,3284.7,3284.5,1.3311]
[1736641201180,3.42098,3284.7,3284.5,1.3311]
[1736641201590,3.2078,3284.7,3284.5,1.3311]
[1736641201789,0.21319,3284.6,3284.5,1.3311]
[1736641202790,3.2078,3284.7,3284.0,3.73674397]
[1736641203091,0.2132,3284.4,3284.1,1.3492]
[1736641203390,0.21321,3284.2,3284.1,1.3492]
[1736641203886,0.4402,3284.5,3284.1,1.3492]
[1736641204086,0.2132,3284.5,3284.1,1.56242]
[1736641204387,0.67319,3284.6,3284.2,0.21321]
[1736641204783,0.67319,3284.6,3284.1,1.56242]
[1736641205180,0.21317,3284.9,3284.4,0.2132]
[1736641205488,0.21318,3284.7,3284.3,0.2132]
[1736641206289,0.21318,3284.7,3284.2,0.21321]
[1736641206688,3.2078,3284.7,3284.1,1.3492]
[1736641206887,0.2132,3284.4,3284.1,1.3492]
[1736641208480,3.2078,3284.7,3284.1,1.3492]
[1736641208790,0.21319,3284.6,3284.2,0.21321]
[1736641208994,0.21319,3284.6,3284.1,1.3492]
[1736641209292,0.21321,3284.3,3284.1,1.3492]
[1736641211188,0.2132,3284.4,3284.1,1.3492]
[1736641211391,0.2132,3284.4,3284.1,1.56242]
[1736641211591,0.2132,3284.4,3284.1,1.3492]
[1736641213783,0.2132,3284.4,3284.1,1.56242]
[1736641214185,0.2132,3284.4,3284.1,1.3492]
[1736641214786,0.4754,3284.6,3284.1,1.3492]
[1736641214986,0.21321,3284.3,3284.1,1.3492]
[1736641215787,0.4754,3284.6,3284.1,1.3492]
[1736641215987,3.2078,3284.7,3284.1,3.46540332]
[1736641216193,0.21318,3284.7,3284.4,0.2132]
[1736641216795,0.21319,3284.6,3284.2,0.21321]
[1736641217098,0.21319,3284.6,3284.3,0.2132]
[1736641217290,0.4663,3284.9,3284.1,1.3492]
[1736641217488,0.21321,3284.3,3284.1,1.3492]
[1736641218598,0.53299,3284.5,3284.0,3.73674397]
[1736641218788,0.21322,3284.1,3284.0,3.73674397]
[1736641220097,0.21322,3284.1,3284.0,0.52894397]
[1736641222899,0.458,3284.2,3283.7,1.57174]
[1736641223091,0.21323,3283.9,3283.7,1.57174]